Workbook

Sheet Annuity Calculators
A1: FIRE Calculators
A2: Fill only green cells
A3: What is the corpus required? | D3: How much can I draw from a corpus? (annual payout)
A4: Amount needed in first year (1st payment) | B4: 400000 | D4: corpus | E4: =corpus -> 10000000
A5: Interest rate on corpus | B5: 0.08 | D5: Interest rate on corpus | E5: 0.08
A6: Inflation rate | B6: 0.08 | D6: Inflation rate | E6: 0.08
A7: Years payments are required | B7: 5 | D7: Years payments are required | E7: 25
A8: Corpus | B8: =PV((1+return)/(1+inflation)-1,years,-payment,,1) -> 2000000 | D8: First annual payment | E8: =PMT((1+return2)/(1+inflation2)-1,years1,-corpus1,,1) -> 400000
D9: Last annual payment | E9: =PMT((1+return2)/(1+inflation2)-1,years1,-corpus1,,1)*(1+inflation2)^(years1-1) -> 2536472.295
A10: How long will a corpus last? | D10: What is rate of return required?
A11: Corpus | B11: 10000000 | D11: Corpus | E11: 11000000
A12: Interest rate on corpus | B12: 0.08 | D12: Inflation rate | E12: 0.1
A13: Inflation rate | B13: 0.08 | D13: Years payments are required | E13: 25
A14: Amount needed in first year (1st payment) | B14: 400000 | D14: Amount needed in first year (1st payment) | E14: 360000
A15: Years payment can be made | B15: =NPER((1+return1)/(1+inflation1)-1,-payment1,corpus,,1) -> 25 | D15: Rate of return required | E15: =RATE(E13,-payment2,corpus2,0,1)*(1+inflation3)+inflation3 -> 0.08236937736
A17: Comments and suggestions welcome | E17: pattu@iitm.ac.in
A18: Download more financial calculators and analysis tools from: | D18: Freefincal.com

Sheet retirement planner
A1: Retirement Planner (Fill only cells in green) | C1: Visit freefincal for more free calculators
A2: Current year | B2: 2012 | C2: Comments, criticism, specific ways to improve the calculations and your thoughts on
A3: Age at the end of current year | B3: 38 | C3: goal plannning are welcome. M. Pattabiraman pattu@iitm.ac.in
A4: No of years you expect to work | B4: 27
A5: Current monthly expenses | B5: 30000
A6: Other Annual expenses | B6: 5000 | C6: Include expenses like vehicle service charges, AMCs on appliances etc. mediclaim premium. Exclude life insurance premium
A7: overestimate expenses for safety by % | B7: 0.1 | C7: This will be added to your current expenses now it self. I use this more as a safety buffer
A8: Expected inflation after retirement | B8: 0.085 | C8: Do not underestimate. Numbers will be rosy if you underestimate
A9: Estimated years in retirement | B9: 25 | C9: Don’t underestimate! Especially if you wish to retire soon.
A10: Net Rate of interest for monthly investment | B10: 0.09 | C10: Some component of your investment would go to equity (~ 60%) and rest to debt instrument. So this rate is an average value
A11: Anticipated post-retirement rate of interest | B11: 0.08
A12: Amount invested so far (end of current year) | B12: 1800000
A13: rate of interest for this amount | B13: 0.08
A14: Annual increase in monthly investment | B14: 0.13 | C14: This is the most important parameter. If you don’t stick to this the plan each year upto retirement, the plan will fail!
A15: When you retire amt invested so far will grow to | B15: =B12*(1+B13)^(wy) -> 14378510.64
A16: Current expenses per month (annual/12) | B16: =(B5+(B6/12))*(1+addexp) -> 33458.33333 | C16: Overestimate by | E16: =addexp -> 0.1 | F16: (entry in cell B7) as a safety measure. Set B7 to zero if you don’t need this
A17: Total Corpus Required | B17: =PV((1+retroi)/(1+inf)-1,k,-prepen1*12,,1) -> 110449320.9
A18: Net corpus to be saved | B18: =PV((1+retroi)/(1+inf)-1,k,-prepen1*12,,1)/(1-tax)-B15 -> 96070810.27
A19: Estimated tax rate on monthy pension | B19: =(1+3%)*IF(expenses*(1+addexp)*12<=200000,0,IF(expenses*(1+addexp)*12<=500000,(expenses*(1+addexp)*12-200000)*10%,IF(expenses*(1+addexp)*12<=1000000,30000+ (expenses*(1+addexp)*12-500000)*20%,30000+500000*20%+(expenses*(1+addexp)*12-1000000)*30%)))/(expenses*(1+addexp)*12) -> 0.05635673044 | C19: Estimated assuming your current annual expenses = taxable income under present tax slab - likely post-retirement scenario
A20: Pre-tax monthly pension in 1st year of retirement | B20: =(B16)*(1+inf)^(wy)*(1+inf)^(1)/(1-B19) -> 348120.1212
A21: Post-tax monthly pension in 1st year of retirement | B21: =B20*(1-B19) -> 328501.2094 | C21: =initial monthly expenses when you retire
A22: Results
A23: Initial monthly investment required = | B23: =IF(wy=0,0,IF(B14=B10,(PV((1+retroi)/(1+inf)-1,k,-prepen1*12,,1)/(1-tax)-B15)/(12*n*(1+B10)^n),(PV((1+retroi)/(1+inf)-1,k,-prepen1*12,,1)/(1-tax)-B15)*(B10-B14)/(12*(1+B10)*((1+B10)^(wy)-(1+B14)^(wy))))) -> 17421.19839
A24: Increasing each year by | B24: =gd -> 0.13
A26: Instructions and Notes
A27: 1. Fill only cells in green
A28: 2. The worksheet is not protected so make a copy before proceeding
A29: 3. The sheet calculates annual annuity payable at the beginning of the year
A30: 4. investment for retirement is assumed to be made at the beginning of the month
A31: 5. The sheet assumes the investment for ret. will begin in Jan of the next year.
A32: If you are already investing on a monthly basis you could expect a bigger corpus.
A33: You could include this nformation suitably in the 'amt. inv. So far' cell
H216: =IF(D216<(y+wy+1),0,(((1+inf)^(D216-y-wy-1)*PMT(((1+retroi)/(1+inf)-1),(k),(IF(option="Yes",-corpself,-corpus)),,1))/12)) -> 0
H217: 0
H218: 0
H219: 0
H220: 0
H221: 0
H222: 0
H223: 0
H224: 0
H225: 0
H226: 0
H227: 0
H228: 0
H229: 0
H230: 0
H231: 0
H232: 0
H233: 0
H234: 0
H235: 0
H236: 0
H237: 0
H238: 0
H239: 0
H240: 0
H241: 0
H242: 0
H243: 0
H244: 0
H245: 0
H246: 0
H247: 0
H248: =IF(D248<(y+wy+1),0,(((1+inf)^(D248-y-wy-1)*PMT(((1+retroi)/(1+inf)-1),(k),(IF(option="Yes",-corpself,-corpus)),,1))/12)) -> 0
H249: 0
H250: 0
H251: 0
H252: 0
H253: 0
H254: 0
H255: 0
H256: 0
H257: 0
H258: 0
H259: 0
H260: 0
H261: 0
H262: 0
H263: 0
H264: 0
H265: 0
H266: 0
H267: 0
H268: 0
H269: 0
H270: 0
H271: 0
H272: 0
H273: 0
H274: 0
H275: 0
H276: 0
H277: 0
H278: 0
H279: 0
H280: =IF(D280<(y+wy+1),0,(((1+inf)^(D280-y-wy-1)*PMT(((1+retroi)/(1+inf)-1),(k),(IF(option="Yes",-corpself,-corpus)),,1))/12)) -> 0
H281: 0
H282: 0
H283: 0
H284: 0
H285: 0
H286: 0
H287: 0
H288: 0
H289: 0
H290: 0
H291: 0
H292: 0
H293: 0
H294: 0
H295: 0
H296: 0
H297: 0
H298: 0
H299: 0
H300: 0
H301: 0
H302: 0
H303: 0
H304: 0
H305: 0
H306: 0
H307: 0
H308: 0
H309: 0
H310: 0
H311: 0
H312: =IF(D312<(y+wy+1),0,(((1+inf)^(D312-y-wy-1)*PMT(((1+retroi)/(1+inf)-1),(k),(IF(option="Yes",-corpself,-corpus)),,1))/12)) -> 0
H313: 0
H314: 0
H315: 0
H316: 0
H317: 0
H318: 0
H319: 0
H320: 0
H321: 0
H322: 0
H323: 0
H324: 0
H325: 0
H326: 0
H327: 0
H328: 0
H329: 0
H330: 0
H331: 0
H332: 0
H333: 0
H334: 0
H335: 0
H336: 0
H337: 0
H338: 0
H339: 0
H340: 0
H341: 0
H342: 0
H343: 0
H344: =IF(D344<(y+wy+1),0,(((1+inf)^(D344-y-wy-1)*PMT(((1+retroi)/(1+inf)-1),(k),(IF(option="Yes",-corpself,-corpus)),,1))/12)) -> 0
H345: 0
H346: 0
H347: 0
H348: 0
H349: 0
H350: 0
H351: 0
H352: 0
H353: 0
H354: 0
H355: 0
H356: 0
H357: 0
H358: 0
H359: 0
H360: 0
H361: 0
H362: 0
H363: 0
H364: 0
H365: 0
H366: 0
H367: 0
H368: 0
H369: 0
H370: 0
H371: 0
H372: 0
H373: 0
H374: 0
H375: 0
H376: =IF(D376<(y+wy+1),0,(((1+inf)^(D376-y-wy-1)*PMT(((1+retroi)/(1+inf)-1),(k),(IF(option="Yes",-corpself,-corpus)),,1))/12)) -> 0
H377: 0
H378: 0
H379: 0
H380: 0
H381: 0
H382: 0
H383: 0
... 828 more rows
